bitfinex-derivatives/quotes_SOLF0:USTF0_20250603
["timestamp","ask_amount","ask_price","bid_price","bid_amount"]
[1748952729707,31.66,160.92,160.85,6.47455601]
[1748952730008,6.2108,160.9,160.85,6.47455601]
[1748952730811,6.2105,160.91,160.85,6.47455601]
[1748952731508,37.8701,160.92,160.87,6.43399383]
[1748952731909,31.66,160.92,160.9,6.2104]
[1748952732214,31.66,160.95,160.89,6.47364543]
[1748952732603,37.8692,160.95,160.91,6.2101]
[1748952732804,6.43399383,160.96,160.91,6.2101]
[1748952733010,31.66,160.98,160.91,6.2101]
[1748952733314,6.43399383,160.95,160.93,0.04268751]
[1748952733703,6.2092,160.94,160.93,0.04268751]
[1748952733906,31.62,160.94,160.86,10.3615]
[1748952734108,6.43399383,160.92,160.86,4.1493]
[1748952734307,6.211,160.9,160.86,4.1493]
[1748952734512,6.211,160.9,160.86,10.3614]
[1748952735116,6.25360592,160.9,160.87,6.2119]
[1748952735415,0.04260592,160.9,160.86,4.1903485]
[1748952735808,0.04260592,160.9,160.86,10.4024485]
[1748952736112,6.25350592,160.9,160.86,4.1903485]
[1748952736313,6.25350592,160.9,160.86,10.4025485]
[1748952737411,6.2112,160.89,160.86,10.4025485]
[1748952737607,0.04260592,160.9,160.86,4.1903485]
[1748952738317,0.04260592,160.9,160.86,0.0410485]
[1748952738617,6.2118,160.88,160.86,0.0410485]
[1748952739719,6.2119,160.87,160.86,0.0410485]
[1748952740222,6.47659975,160.9,160.86,0.0410485]
[1748952740415,6.2118,160.88,160.86,0.0410485]
[1748952741317,6.2119,160.87,160.86,0.0410485]
[1748952741918,6.2132,160.84,160.78,6.43399383]
[1748952742113,31.64260592,160.9,160.77,4.0866]
[1748952742114,6.43399383,160.83,160.77,4.0866]
[1748952742823,6.214,160.82,160.77,4.0866]
[1748952743020,0.04177564,160.81,160.79,6.2147]
[1748952743822,0.04177564,160.81,160.8,6.2146]
[1748952744018,0.04177564,160.81,160.78,0.04733155]
[1748952744421,38.03399383,160.89,160.79,6.43399383]
[1748952744620,38.03399383,160.89,160.81,6.43399383]
[1748952744822,6.2125,160.86,160.82,6.2136]
[1748952745123,6.43399383,160.87,160.8,31.6]
[1748952745625,0.04187877,160.85,160.82,6.26087634]
[1748952746324,0.04187877,160.85,160.82,0.04737634]
[1748952747622,6.25497877,160.85,160.82,6.26117634]
[1748952750315,0.04187877,160.85,160.82,0.04737634]
[1748952752023,0.04187877,160.85,160.84,6.2131]
[1748952758728,37.8105,160.91,160.84,5.2760336]
[1748952758926,37.8105,160.91,160.85,6.43399383]
[1748952759229,37.8105,160.91,160.87,6.2116]
[1748952759731,31.6,160.91,160.87,0.04667464]
[1748952759929,31.6,160.91,160.88,6.2113]
[1748952760330,37.8106,160.91,160.88,6.2113]
[1748952762928,37.8106,160.91,160.89,6.2111]
[1748952763130,31.6,160.91,160.89,6.2111]
[1748952763330,31.6,160.91,160.87,6.48066847]
[1748952763530,38.03399383,160.94,160.9,6.2108]
[1748952763732,6.2099,160.93,160.9,6.25858429]
[1748952764226,6.21,160.92,160.9,6.25858429]
[1748952764431,6.21,160.92,160.9,0.04778429]
[1748952765740,31.6,160.94,160.9,0.04778429]
[1748952767029,6.2099,160.93,160.9,6.25858429]
[1748952769841,31.6,160.94,160.9,0.04778429]
[1748952770037,31.6,160.94,160.91,5.31024238]
[1748952770244,31.6,160.94,160.9,0.04778429]
[1748952770542,37.8093,160.94,160.91,11.52048931]
[1748952770742,37.8093,160.94,160.91,6.2103]
[1748952770943,31.6,160.94,160.9,0.04778429]
[1748952771143,31.6,160.94,160.91,5.31406749]
[1748952771345,31.6,160.94,160.9,0.04778429]
[1748952771541,6.2096,160.93,160.91,5.31359842]
[1748952771743,6.2096,160.93,160.9,6.25848429]
[1748952772038,6.2096,160.93,160.91,11.5241635]
[1748952772242,31.6,160.94,160.92,5.31354575]
[1748952772443,31.6,160.94,160.9,6.48177812]
[1748952772744,31.6,160.94,160.92,6.2097]
[1748952772943,6.209,160.95,160.92,6.2097]
[1748952774957,6.2093,160.94,160.91,6.2102]
[1748952775153,6.43399383,160.96,160.92,5.31346034]
[1748952775354,6.43399383,160.96,160.9,0.04778429]
[1748952775654,6.43399383,160.96,160.91,5.31346072]
[1748952775859,6.43399383,160.96,160.92,5.31346072]
[1748952776155,6.209,160.95,160.92,6.2097]
[1748952779465,6.2092,160.94,160.92,6.2097]
[1748952779865,6.2092,160.94,160.91,6.2102]
[1748952780251,6.43399383,160.94,160.9,0.04778429]
[1748952780459,6.43399383,160.92,160.9,0.04778429]
[1748952780952,6.2104,160.91,160.9,0.04778429]
[1748952786667,6.2124,160.86,160.83,18.12082059]
[1748952786865,6.43399383,160.88,160.84,5.31057109]
[1748952787067,6.43399383,160.88,160.85,5.31057109]
[1748952787268,6.43399383,160.88,160.83,12.3291]
[1748952787269,6.2124,160.86,160.83,12.3291]
[1748952787567,6.2124,160.86,160.84,5.3107678]
[1748952787766,6.2124,160.86,160.85,5.3107678]
[1748952788367,6.2124,160.86,160.85,5.31202787]
[1748952790264,6.2124,160.86,160.83,4.192599]
[1748952790466,6.2124,160.86,160.84,5.31412779]
[1748952790666,6.2124,160.86,160.85,5.31412779]
[1748952791567,6.2124,160.86,160.85,5.31492938]
[1748952792267,6.25384125,160.87,160.84,6.213]
[1748952792468,6.25384125,160.87,160.85,5.3146292]
[1748952792668,6.2123,160.86,160.83,10.405899]
[1748952792870,6.2123,160.86,160.84,5.31546508]
[1748952793071,6.2123,160.86,160.85,5.31546508]
[1748952795973,6.25394125,160.87,160.85,5.31546508]
[1748952796176,0.04184125,160.87,160.84,6.213]
[1748952796475,0.04184125,160.87,160.85,5.31653173]
[1748952796682,6.2123,160.86,160.83,10.405799]
[1748952796878,6.2123,160.86,160.84,5.31674673]
[1748952797078,6.2123,160.86,160.85,5.31674673]
[1748952797871,0.04184125,160.87,160.85,5.31674673]
[1748952798079,0.04184125,160.87,160.86,5.31674673]
[1748952799172,0.04184125,160.87,160.86,11.52904673]
[1748952799369,37.79399383,160.92,160.86,5.31674673]
[1748952799574,37.79399383,160.92,160.87,5.31674673]
[1748952799773,6.2104,160.91,160.88,11.52804673]
[1748952799976,37.79399383,160.92,160.89,5.31674673]
[1748952800178,37.79399383,160.92,160.85,5.79926357]
[1748952800375,6.211,160.9,160.87,6.25386739]
[1748952800576,6.211,160.9,160.88,5.3171858]
[1748952800782,37.79399383,160.92,160.87,0.04216739]
[1748952801084,37.79399383,160.92,160.88,5.3173884]
[1748952801378,6.2114,160.89,160.87,0.04216739]
[1748952801573,6.2114,160.89,160.88,5.31768592]
[1748952804380,6.2114,160.89,160.87,0.04216739]
[1748952804684,6.2114,160.89,160.88,5.3178398]
[1748952807490,6.2115,160.88,160.87,0.04216739]
[1748952807685,6.2115,160.88,160.87,5.36068406]
[1748952808487,6.2115,160.88,160.87,0.04216739]
[1748952808688,6.2115,160.88,160.87,5.36070315]
[1748952809088,12.64549383,160.88,160.87,0.04216739]
[1748952809389,44.00549383,160.88,160.87,0.04216739]
[1748952813891,44.00549383,160.88,160.81,6.2141]
[1748952813892,6.2131,160.84,160.81,6.2141]
[1748952814192,6.2131,160.84,160.82,5.31642425]
[1748952814392,6.2131,160.84,160.83,5.31642425]
[1748952816591,6.2135,160.83,160.82,0.0451253]
[1748952816792,0.04659236,160.85,160.82,5.36007031]
[1748952816995,6.48058619,160.85,160.83,5.31494501]
[1748952817198,6.48058619,160.85,160.82,0.0451253]
[1748952817999,6.2131,160.84,160.82,0.0451253]
[1748952818191,6.48058619,160.85,160.82,0.0451253]
[1748952818392,6.48058619,160.85,160.83,5.31474934]
[1748952818698,6.2135,160.83,160.82,0.0451253]
[1748952818897,6.48058619,160.85,160.82,5.36065521]
[1748952819098,6.2131,160.84,160.83,5.31552991]
[1748952820791,6.2135,160.83,160.82,0.0451253]
[1748952820997,6.2135,160.83,160.82,5.36134974]
[1748952821501,37.5733,160.84,160.82,5.36134974]
[1748952821703,37.5733,160.84,160.83,5.31622444]
[1748952822003,37.5733,160.84,160.83,5.31684661]
[1748952825397,0.04659236,160.85,160.83,5.31684661]
[1748952825600,0.04659236,160.85,160.84,5.31684661]
[1748952825799,0.04659236,160.85,160.84,11.52994661]
[1748952827004,31.36,160.88,160.84,11.52994661]
[1748952827005,31.36,160.88,160.84,5.31684661]
[1748952827302,31.36,160.88,160.83,6.43399383]
[1748952827303,568.08,160.91,160.85,5.31684661]
[1748952827503,568.08,160.91,160.86,5.31684661]
[1748952827807,568.08,160.91,160.87,5.32466043]
[1748952828001,6.2114,160.89,160.87,0.03998102]
[1748952829502,6.2115,160.88,160.87,0.03998102]
[1748952829703,6.2115,160.88,160.87,5.36614654]
[1748952835307,6.2113,160.89,160.87,5.36614654]
[1748952835507,6.2113,160.89,160.88,5.32616552]
[1748952835807,688.2,160.91,160.88,5.32616552]
[1748952836009,688.2,160.91,160.87,0.03998102]
[1748952836203,688.2,160.91,160.88,5.32643938]
[1748952836510,6.2115,160.89,160.87,0.03998102]
[1748952836711,6.2115,160.89,160.88,5.3263049]
[1748952837702,6.2115,160.89,160.87,0.03998102]
[1748952837909,6.2115,160.88,160.87,0.03998102]
[1748952838209,6.2115,160.88,160.87,5.36632729]
[1748952838613,6.2113,160.89,160.87,5.36632729]
[1748952838812,157.67399383,160.91,160.87,0.03998102]
[1748952840108,6.2115,160.88,160.87,0.03998102]
[1748952840309,6.2115,160.88,160.87,5.36586627]
[1748952840812,6.2115,160.88,160.87,5.36583832]
[1748952842108,6.2115,160.88,160.87,0.03998102]
[1748952842307,6.2115,160.88,160.87,5.36588251]
[1748952842810,6.2114,160.89,160.87,5.36588251]
[1748952843005,6.2114,160.89,160.87,0.03998102]
[1748952843708,6.43399383,160.9,160.87,0.03998102]
[1748952843907,6.2109,160.9,160.88,5.3254092]
[1748952844116,6.2109,160.9,160.87,0.03998102]
[1748952844410,31.1,160.91,160.88,5.32518967]
[1748952844711,31.1,160.91,160.89,5.32518967]
[1748952845023,6.2108,160.9,160.87,6.25168102]
[1748952845213,6.2108,160.9,160.88,5.32522341]
[1748952845412,6.2108,160.9,160.89,5.32522341]
[1748952845916,6.2108,160.9,160.87,0.03998102]
[1748952845917,6.2115,160.88,160.87,0.03998102]
[1748952846111,6.2115,160.88,160.87,5.36571768]
[1748952850717,31.1,160.94,160.87,5.36571768]
[1748952850923,31.1,160.94,160.88,5.32573666]
[1748952851221,37.3095,160.94,160.91,6.2104]
[1748952851419,31.1,160.94,160.92,5.32597268]
[1748952851617,31.1,160.94,160.91,0.04686813]
[1748952851825,31.1,160.94,160.92,5.32431752]
[1748952852122,574.51399383,160.97,160.91,0.04686813]
[1748952852324,574.51399383,160.97,160.92,5.33934377]
[1748952852514,574.51399383,160.97,160.91,0.04686813]
[1748952852712,6.2091,160.95,160.92,11.54732434]
[1748952852920,6.2091,160.95,160.92,6.2098]
[1748952853322,6.2091,160.95,160.93,5.33525197]
[1748952853526,6.2091,160.95,160.92,6.2098]
[1748952853527,574.51399383,160.97,160.91,0.04686813]
[1748952853829,574.51399383,160.97,160.92,5.33305956]
[1748952854021,6.2091,160.95,160.91,6.25696813]
[1748952854332,6.2091,160.95,160.92,5.33305956]
[1748952854625,574.51399383,160.97,160.91,6.25696813]
[1748952854826,574.51399383,160.97,160.92,5.33114305]
[1748952855123,6.2091,160.95,160.91,6.25696813]
[1748952855339,6.2091,160.95,160.92,5.33119211]
[1748952855525,6.2091,160.95,160.91,6.25696813]
[1748952855731,6.2091,160.95,160.92,5.32961687]
[1748952855931,6.2091,160.95,160.92,6.2098]
[1748952856131,6.2087,160.96,160.91,0.04686813]
[1748952856334,568.08,160.97,160.92,5.32932769]
[1748952856530,568.08,160.97,160.93,5.32891428]
[1748952856733,568.08,160.97,160.91,6.48086196]
[1748952856934,568.08,160.97,160.92,5.3271899]
[1748952857141,568.08,160.97,160.93,5.3271899]
[1748952857441,568.08,160.97,160.91,6.48086196]
[1748952857641,568.08,160.97,160.92,5.32510658]
[1748952857839,568.08,160.97,160.91,6.48086196]
[1748952858038,6.2087,160.96,160.92,11.53495809]
[1748952858241,6.2087,160.96,160.92,6.2099]
[1748952858641,6.2089,160.95,160.92,6.2099]
[1748952858842,568.08,160.97,160.93,11.5317695]
[1748952858843,31.1,160.97,160.93,11.5317695]
[1748952859036,31.1,160.97,160.93,6.2095]
[1748952859336,6.2087,160.96,160.92,10.1674]
[1748952859550,6.2087,160.96,160.93,5.3219185]
[1748952859736,6.2087,160.96,160.92,3.9575]
[1748952859936,6.2087,160.96,160.93,5.32065215]
[1748952860139,6.2087,160.96,160.93,6.2094]
[1748952861145,6.2087,160.96,160.94,2.56948013]
[1748952861332,6.2087,160.96,160.93,6.2094]
[1748952861935,6.2087,160.96,160.94,2.56934655]
[1748952862145,6.2087,160.96,160.93,6.2094]
[1748952862746,31.1,160.97,160.92,3.9575]
[1748952863043,31.1,160.97,160.93,2.56929852]
[1748952863346,6.2088,160.96,160.93,6.2096]
[1748952863937,31.1,160.97,160.94,2.56905864]
[1748952864142,6.43399383,160.94,160.91,0.04686813]
[1748952864343,6.2096,160.93,160.91,0.04686813]
[1748952864545,6.43399383,160.94,160.91,0.04686813]
[1748952864854,6.21,160.92,160.91,0.04686813]
[1748952868042,43.66379383,160.93,160.91,0.04686813]
[1748952869043,6.21,160.92,160.91,0.04686813]
[1748952871242,31.02,160.93,160.91,0.04686813]
[1748952871444,31.02,160.93,160.92,5.32590026]
[1748952871648,31.02,160.93,160.92,14.10677259]
[1748952871844,31.02,160.96,160.92,7.89674107]
[1748952872049,31.02,160.96,160.92,0.04503707]
[1748952872251,6.2091,160.95,160.93,6.2095]
[1748952873554,6.2092,160.94,160.92,6.25493707]
[1748952873755,31.02,160.96,160.92,6.25493707]
[1748952874257,31.02,160.96,160.93,2.57074569]
[1748952874453,31.02,160.96,160.92,6.4790309]
[1748952874655,31.02,160.96,160.93,5.32488548]
[1748952874857,37.2285,160.96,160.94,8.77968228]
[1748952875157,37.2285,160.96,160.94,6.209]
[1748952875158,31.02,160.96,160.94,6.209]
[1748952875362,31.02,160.96,160.95,6.2089]
[1748952877849,31.02,160.96,160.94,6.2091]
[1748952879556,37.2286,160.96,160.94,6.2091]
[1748952879754,31.02,160.96,160.93,6.2094]
[1748952880354,6.43399383,160.95,160.92,0.04503707]
[1748952881663,6.2092,160.94,160.92,0.04503707]
[1748952881848,6.43399383,160.95,160.92,0.04503707]
[1748952882255,6.2095,160.94,160.92,0.04503707]
[1748952883057,6.2096,160.93,160.92,0.04503707]
[1748952883459,6.2096,160.93,160.92,5.37104601]
[1748952883654,6.2094,160.94,160.92,5.37104601]
[1748952883854,6.2094,160.94,160.92,0.04503707]
[1748952884756,6.2096,160.93,160.92,0.04503707]
[1748952884951,6.2096,160.93,160.92,5.37179068]
[1748952886164,6.2095,160.94,160.92,5.37179068]
[1748952886364,31.02,160.96,160.92,0.04503707]
[1748952886564,37.45399383,160.96,160.92,0.04503707]
[1748952886865,31.02,160.96,160.92,0.04503707]
[1748952887065,31.02,160.96,160.93,5.32525989]
[1748952887261,31.02,160.96,160.92,0.04503707]
[1748952887461,31.02,160.96,160.93,5.32607539]
[1748952887764,37.2287,160.96,160.93,6.2096]
[1748952887958,31.02,160.96,160.93,6.2096]
[1748952888467,6.2089,160.95,160.92,6.25493707]
[1748952888658,6.2089,160.95,160.93,5.32646619]
[1748952888860,6.2089,160.95,160.92,6.25493707]
[1748952889069,6.2089,160.95,160.93,5.32735496]
[1748952889265,6.2093,160.94,160.92,0.04503707]
[1748952889464,6.2093,160.94,160.93,5.32733045]
[1748952889865,6.2093,160.94,160.93,7.89826597]
[1748952890065,6.2093,160.94,160.93,5.32733045]
[1748952890460,6.2093,160.94,160.93,7.89826321]
[1748952890665,6.2093,160.94,160.93,5.32733045]
[1748952891461,6.2093,160.94,160.93,7.90046231]
[1748952891665,6.2093,160.94,160.93,10.47139799]
[1748952891869,6.2093,160.94,160.93,10.47139783]
[1748952892066,6.209,160.95,160.93,10.47139783]
[1748952892269,6.209,160.95,160.93,5.14188153]
[1748952892471,6.209,160.95,160.94,5.32961364]
[1748952894276,37.2287,160.96,160.94,5.32961364]
[1748952894475,37.2287,160.96,160.93,8.78053552]
[1748952894781,37.2287,160.96,160.94,5.33418791]
[1748952895075,567.78,161.0,160.95,5.33405611]
[1748952895369,567.78,161.0,160.96,7.95133653]
[1748952895568,567.78,161.0,160.97,5.335438]
[1748952895767,573.9872,161.0,160.98,5.335438]
[1748952895968,573.9872,161.0,160.96,6.25495309]
[1748952896271,573.9872,161.0,160.97,7.91461611]
[1748952896471,573.9872,161.0,160.98,5.34416201]
[1748952896675,573.9872,161.0,160.96,6.25495309]
[1748952896873,573.9872,161.0,160.97,5.34294403]
[1748952897070,573.9872,161.0,160.98,5.34294403]
[1748952897269,573.9872,161.0,160.96,6.25495309]
[1748952897571,573.9872,161.0,160.97,5.34727884]
[1748952897775,573.9872,161.0,160.98,5.34727884]
[1748952897975,6.2074,160.99,160.96,6.25495309]
[1748952898178,6.2074,160.99,160.97,5.34551183]
[1748952898376,6.2074,160.99,160.98,5.34551183]
[1748952898774,573.9871,161.0,160.98,5.34551183]
[1748952898976,573.9871,161.0,160.96,6.25515309]
[1748952899180,573.9871,161.0,160.97,5.34450603]
[1748952899478,6.2074,160.99,160.98,5.34450603]
[1748952900779,12.64139383,160.99,160.98,5.34450603]
[1748952901978,567.78,161.0,160.96,0.04665309]
[1748952902179,6.43399383,160.99,160.97,5.34192348]
[1748952902382,6.43399383,160.99,160.96,0.04665309]
[1748952902681,6.43399383,160.99,160.97,5.34170143]
[1748952902878,6.43399383,160.99,160.96,0.04665309]
[1748952903184,6.43399383,160.99,160.97,5.34127519]
[1748952903375,6.43399383,160.99,160.96,0.04665309]
[1748952903684,6.43399383,160.99,160.97,5.34127519]
[1748952903879,6.208,160.98,160.96,0.04665309]
[1748952904087,6.208,160.98,160.97,5.34057726]
[1748952905877,31.0,161.0,160.98,6.2076]
[1748952906089,6.43399383,161.0,160.96,0.04665309]
[1748952906298,6.43399383,160.98,160.97,5.33925512]
[1748952906483,6.2081,160.97,160.96,0.04665309]
[1748952909979,6.43399383,160.97,160.96,0.04665309]
[1748952910386,12.64209383,160.97,160.96,0.04665309]
[1748952911698,6.2081,160.97,160.96,0.04665309]
[1748952911895,12.64209383,160.97,160.96,0.04665309]
[1748952912783,6.2081,160.97,160.96,0.04665309]
[1748952912990,12.64209383,160.97,160.96,0.04665309]
[1748952913588,37.2079,160.98,160.96,0.04665309]
[1748952914386,6.2081,160.97,160.96,0.04665309]
[1748952914590,12.64209383,160.97,160.96,0.04665309]
[1748952915187,6.2081,160.97,160.96,0.04665309]
[1748952917596,44.2685,161.08,160.96,0.04665309]
[1748952917799,47.93168249,161.08,160.96,11.82939733]
[1748952917995,47.93168249,161.08,161.0,0.04442923]
[1748952917996,12.64059383,161.01,161.0,0.04442923]
[1748952918695,12.64059383,161.01,160.94,10.03965835]
[1748952918696,6.43399383,161.01,160.94,10.03965835]
[1748952918893,6.43399383,160.99,160.95,7.91992815]
[1748952919101,38.29399383,160.99,160.96,5.34769328]
[1748952919297,38.29399383,160.99,160.97,5.34769328]
[1748952919500,38.0676,160.99,160.94,10.03965835]
[1748952919692,38.0676,160.99,160.95,11.63177369]
[1748952919899,0.04509784,160.98,160.96,5.38312626]
[1748952920088,0.04509784,160.98,160.97,5.38312626]
[1748952921701,0.04509784,160.98,160.97,5.38270081]
[1748952922006,0.04509784,160.98,160.95,0.03974743]
[1748952922195,6.43399383,160.96,160.95,0.03974743]
[1748952922503,12.64249383,160.96,160.95,5.42294217]
[1748952923198,12.64249383,160.96,160.95,0.03974743]
[1748952923590,6.2093,160.94,160.93,2.57093552]
[1748952923790,44.50329383,160.94,160.93,7.9540692]
[1748952925504,38.29399383,160.94,160.93,7.95387503]
[1748952925700,31.86,160.94,160.93,7.95387503]
[1748952925898,31.86,160.94,160.93,10.52589863]
[1748952926096,31.86,160.94,160.93,7.95387503]
[1748952926296,31.86,160.94,160.93,10.5258932]
[1748952926501,31.86,160.94,160.93,7.95387503]
[1748952926801,31.86,160.94,160.93,10.52585111]
[1748952926996,31.86,160.94,160.93,7.95387503]
[1748952929605,31.86,160.94,160.93,7.95410173]
[1748952933807,31.86,160.94,160.93,14.16380173]
[1748952934404,31.86,160.94,160.93,7.95410173]
[1748952934912,38.0693,160.94,160.93,7.95410173]
[1748952935999,31.86,160.94,160.93,7.95410173]
[1748952937613,31.86,160.94,160.93,7.95250387]
[1748952939213,38.0693,160.94,160.93,7.95250387]
[1748952941607,38.0693,160.94,160.93,7.95156216]
[1748952942415,38.0693,160.94,160.93,7.95094427]
[1748952944015,38.0693,160.94,160.93,2.57093552]
[1748952945315,44.50329383,160.94,160.93,2.57093552]
[1748952945518,38.0693,160.94,160.93,2.57093552]
[1748952946113,44.50329383,160.94,160.93,2.57093552]
[1748952946307,6.2097,160.93,160.92,0.04156172]
[1748952946711,12.64369383,160.93,160.92,0.04156172]
[1748952949717,6.2097,160.93,160.92,0.04156172]
[1748952949908,12.64369383,160.93,160.92,0.04156172]
[1748952954422,6.2097,160.93,160.92,0.04156172]
[1748952954622,12.64369383,160.93,160.92,0.04156172]
[1748952955413,12.64369383,160.93,160.85,5.80326404]
[1748952955414,6.2118,160.88,160.85,5.80326404]
[1748952955621,6.2118,160.88,160.86,5.37200827]
[1748952955622,12.64579383,160.88,160.86,5.37200827]
[1748952955823,12.64579383,160.88,160.87,5.37200827]
[1748952956412,6.2118,160.88,160.87,5.37200827]
[1748952957526,6.2118,160.88,160.87,5.36946034]
[1748952959222,6.212,160.87,160.86,0.04028182]
[1748952959431,6.212,160.87,160.86,5.40694655]
[1748952959620,6.212,160.87,160.86,0.04028182]
[1748952960022,6.2118,160.88,160.86,0.04028182]
[1748952960425,38.49677415,160.89,160.86,0.04028182]
[1748952960728,32.06278032,160.89,160.86,0.04028182]
[1748952960925,38.49677415,160.89,160.86,0.04028182]
[1748952961223,6.2116,160.88,160.86,0.04028182]
[1748952962425,32.06278032,160.89,160.86,0.04028182]
[1748952962621,32.02,160.92,160.87,6.43399383]
[1748952962823,32.02,160.92,160.88,5.36333297]
[1748952963030,32.02,160.92,160.89,5.36333297]
[1748952963232,32.02,160.92,160.88,4.2423]
[1748952963422,32.02,160.92,160.89,5.36284406]
[1748952963725,38.27579039,160.92,160.9,5.36352653]
[1748952964023,38.27579039,160.92,160.89,6.25429252]
[1748952964226,38.27579039,160.92,160.9,5.36352603]
[1748952964417,38.27579039,160.92,160.89,6.25429252]
[1748952964619,38.27579039,160.92,160.9,5.36382253]
[1748952964822,6.2105,160.91,160.89,6.25429252]
[1748952965024,6.2105,160.91,160.9,5.36471276]
[1748952966230,6.2108,160.9,160.89,0.04329252]
[1748952966527,6.2108,160.9,160.89,5.40966493]
[1748952968016,6.2105,160.91,160.89,0.04329252]
[1748952968729,6.2105,160.91,160.9,5.3683237]
[1748952969432,6.2108,160.9,160.89,0.04329252]
[1748952969728,6.2108,160.9,160.89,5.41198987]
[1748952969921,6.2108,160.9,160.89,0.04329252]
[1748952971027,12.64459383,160.91,160.89,0.04329252]
[1748952971532,32.06559039,160.92,160.89,0.04329252]
[1748952971731,32.06559039,160.92,160.89,6.25419252]
[1748952971939,32.06559039,160.92,160.89,0.04329252]
[1748952972326,32.06559039,160.92,160.9,5.3683817]
[1748952972630,32.06559039,160.92,160.9,6.2106]
[1748952973224,32.06559039,160.92,160.91,5.36854843]
[1748952974527,38.27589039,160.92,160.89,0.04329252]
[1748952974826,38.27589039,160.92,160.9,5.36910872]
[1748952975026,38.27589039,160.92,160.89,0.04329252]
[1748952975336,6.2104,160.91,160.9,5.36913965]
[1748952976228,6.2104,160.91,160.9,5.36957087]
[1748952976732,32.06559039,160.92,160.9,5.36957087]
[1748952976922,32.06559039,160.92,160.89,0.04329252]
[1748952977128,32.06559039,160.92,160.9,5.37027098]
[1748952977327,32.06559039,160.92,160.89,0.04329252]
[1748952977536,32.06559039,160.92,160.9,5.37045618]
[1748952977835,6.2104,160.91,160.89,0.04329252]
[1748952978031,32.06559039,160.92,160.9,5.37062274]
[1748952978232,32.06559039,160.92,160.91,5.37086278]
[1748952978535,38.27579039,160.92,160.91,5.37086278]
[1748952980133,38.27579039,160.92,160.89,0.04329252]
[1748952980335,38.27579039,160.92,160.9,5.37157997]
[1748952980537,38.27579039,160.92,160.91,5.37157997]
[1748952986536,32.06559039,160.92,160.91,5.37157997]
[1748952987744,32.06559039,160.92,160.91,5.37847692]
[1748952988144,38.27559039,160.92,160.91,5.37847692]
[1748952988333,38.27559039,160.92,160.91,5.37925889]
[1748952990744,6.2108,160.9,160.89,0.04329252]
[1748952990956,12.64479383,160.9,160.89,5.42355536]
[1748952991449,12.64479383,160.9,160.89,0.04329252]
[1748952992052,6.2122,160.87,160.84,5.80791726]
[1748952992253,37.9722,160.87,160.85,5.30113172]
[1748952992454,37.9722,160.87,160.86,5.30113172]
[1748952993049,31.76,160.87,160.86,5.30113172]
[1748952994953,37.972,160.87,160.86,5.30113172]
[1748952996353,37.972,160.87,160.86,5.29602368]
[1748952999444,37.972,160.87,160.85,0.04201969]
[1748952999445,6.2124,160.86,160.85,0.04201969]
[1748952999644,12.64639383,160.86,160.85,5.33676161]
[1748953000155,6.43399383,160.86,160.81,5.80686946]
[1748953000353,6.43399383,160.84,160.82,5.29391489]
[1748953000654,6.43399383,160.84,160.83,5.29391489]
[1748953000842,44.40709383,160.84,160.83,5.29391489]
[1748953002557,44.40709383,160.84,160.82,0.04381724]
[1748953002855,44.40709383,160.84,160.83,5.28604383]
[1748953003451,6.2135,160.83,160.82,0.04381724]
[1748953003654,38.19399383,160.84,160.82,5.32875835]
[1748953003849,6.2135,160.83,160.82,0.04381724]
[1748953004054,38.19399383,160.84,160.82,5.32875674]
[1748953004255,38.19399383,160.84,160.83,5.28372632]
[1748953005955,31.76,160.84,160.83,5.28372632]
[1748953006451,536.88,160.93,160.85,6.2124]
[1748953006452,31.76,160.87,160.85,6.2124]
[1748953006658,37.9718,160.88,160.85,6.2124]
[1748953006847,37.9718,160.88,160.82,8.41179383]
[1748953007052,37.9718,160.88,160.83,5.28197368]
[1748953007259,37.9718,160.88,160.82,8.41179383]
[1748953007260,37.9718,160.88,160.84,5.28197368]
[1748953007461,6.212,160.87,160.85,5.28197368]
[1748953007666,6.212,160.87,160.84,0.04292182]
[1748953007959,6.212,160.87,160.85,5.28171835]
[1748953008157,6.212,160.87,160.84,6.25572182]
[1748953008360,6.212,160.87,160.85,5.28149083]
[1748953008560,6.212,160.87,160.84,6.25572182]
[1748953008861,6.2124,160.86,160.85,5.28149083]
[1748953009756,6.2124,160.86,160.84,0.04292182]
[1748953010657,6.2124,160.86,160.85,5.28139372]